Cogmind - Beta 16.1 @@@ ROGUE MODE // 2026.02.15 @ 04:10:51 Player: Hazmat Result: Destroyed by Y-45 Defender with Heavy Assault Rifle Performance ------------- Evolutions (1) 500 Regions Visited (2) 400 Robots Destroyed (31) 155 Value Destroyed (811) 811 Prototype IDs (3) 60 Alien Tech Used (0) 0 Bonus (0) 0 TOTAL SCORE: 1926 Bonus ------- None Cogmind --------- Core Integrity 0/400 Matter 300/300 Energy 125/125 System Corruption 7% Temperature Cool (25) Movement Treading (160) Location -9/Materials Parts ------- > --- POWER (1) -------- Light Ion Engine > --- PROPULSION (3) --- Light Treads > --- UTILITY (2) ------ Small Storage Unit Authchip [R/Combat] > --- WEAPON (3) ------- Field Laser > --- INVENTORY (8) ---- (None) Peak State ------------ > --- POWER ------------ Light Ion Engine > --- PROPULSION ------- Light Treads > --- UTILITY ---------- Small Storage Unit Authchip [R/Combat] > --- WEAPON ----------- Field Laser Field Laser Field Laser > --- INVENTORY -------- (None) [Rating: 16] Favorites ----------- Power Ion Engine Engine Ion Engine Propulsion Aluminum Leg Treads Light Treads Leg Aluminum Leg Flight Unit Flight Unit Utility Transport Network Coupler Device Disposable Heat Sink Storage Small Storage Unit Processor Transport Network Coupler Hackware Authchip [R/Combat] Weapon Medium Laser Energy Gun Medium Laser Energy Cannon Advanced Beam Cannon Ballistic Gun Assault Rifle Build | -11 -10 -9 ------- Run | Yrd Mat Mat Slots Evolved 2 | . . 2 Power . | . . . Propulsion 1 | . . 1 Utility . | . . . Weapon 1 | . . 1 Parts Attached 30 | 7 4 19 Power 4 | 1 1 2 Engine 4 | 1 1 2 Core . | . . . Reactor . | . . . Propulsion 10 | 2 . 8 Treads 1 | . . 1 Leg 5 | 2 . 3 Wheel . | . . . Hover . | . . . Flight 4 | . . 4 Utility 6 | 2 1 3 Device 3 | 1 . 2 Storage 1 | 1 . . Processor 1 | . 1 . Hackware 1 | . . 1 Protection . | . . . Artifact . | . . . Weapon 10 | 2 2 6 Energy Gun 8 | 1 2 5 Energy Cannon 1 | . . 1 Ballistic Gun 1 | 1 . . Ballistic Cannon . | . . . Launcher . | . . . Special Weapon . | . . . Impact Weapon . | . . . Slashing Weapon . | . . . Piercing Weapon . | . . . Special Melee Weapon . | . . . Unidentified Prototypes 1 | . . 1 Parts Lost 11 | . . 11 Power 1 | . . 1 Propulsion 4 | . . 4 Utility 2 | . . 2 Weapon 4 | . . 4 Highest Loss Streak 8 | . . 8 To Critical Strikes . | . . . Average Backups 3 | 1 5 2 Power . | . 1 . Propulsion . | . . . Utility 1 | . . 1 Weapon 1 | . 2 . Tool/Special . | . . . Unused Backups 2 | . . 2 Power 1 | . . 1 Propulsion . | . . . Utility . | . . . Weapon 1 | . . 1 Tool/Special . | . . . Average Slot Usage (%) 78 | . 100 64 Engine 11 | . 14 9 Treads 1 | . . 2 Leg 15 | . 28 6 Flight 4 | . . 8 Device 4 | . 3 5 Storage 6 | . 14 1 Processor 8 | . 11 6 Energy Gun 20 | . 18 22 Ballistic Gun 3 | . 9 . Peak Build Rating 16 | 7 7 16 Average Rating 7 | 4 7 8 On Entrance 4 | . 7 7 Avg Prop Armor Cover (%) . | . . . Naked Turns . | . . . Heaviest Build 17 | 12 14 17 Greatest Support 30 | 20 20 30 Greatest Overweight (x) 2 | . . 2 Average Overweight (x) . | . . . Largest Inventory Capacity 8 | 8 8 8 Average Capacity 6 | 6 8 5 Most Carried 8 | 5 8 7 Average Carried 3 | 1 5 2 Final Capacity 8 | 8 8 8 Final Carried 8 | 2 8 . Class Distribution -------------------- 70% | Mutant 10% | Skirmisher 9% | Scavenger-Skirmisher 4% | Scavenger-Mutant 4% | Gunner Dominant Class ---------------- Mutant | -10/Materials Mutant | -9/Materials Resources | -11 -10 -9 ----------- Run | Yrd Mat Mat Matter Collected 572 | 279 94 199 Remotely 97 | 75 22 . Salvage Created 1377 | 73 335 969 Parts 67 | 2 19 46 Haulers Intercepted 5 | . 2 3 Recyclers Shooed 4 | 1 . 3 Parts Field Recycled . | . . . Retrieved Matter . | . . . Parts Self-Destructed . | . . . Prevented . | . . . Parts Restored . | . . . Kills | -11 -10 -9 ------- Run | Yrd Mat Mat Combat Hostiles Destroyed 23 | . 5 18 Guns 21 | . 5 16 Classes Destroyed 7 | 1 2 4 Hauler 5 | . 2 3 Recycler 2 | 1 . 1 Watcher 1 | . . 1 Swarmer 3 | . . 3 Grunt 17 | . 5 12 Brawler 1 | . . 1 Sentry 2 | . . 2 Best Kill Streak 10 | 1 5 10 Combat Bots Only 7 | . 5 7 Max Kills in Single Turn 2 | 1 1 2 Gunslinging 1 | . . 1 Exploded . | . . . Melee . | . . . Uniques/NPCs Destroyed . | . . . Combat | -11 -10 -9 -------- Run | Yrd Mat Mat Hostile Shots Fired 163 | . 24 139 Missed 50 | . 10 40 Hits 113 | . 14 99 Melee 1 | . . 1 Projectile 112 | . 14 98 Critical Strikes 3 | . . 3 Damage Taken 1397 | . 168 1229 Core 451 | . 50 401 Absorbed by Shields . | . . . Core Remaining (%) 90 | 100 80 . Volleys Fired 116 | 3 22 91 Largest 3 | 2 2 3 Hottest 189 | 60 100 189 Shots Fired 207 | 6 44 157 Gun 207 | 6 44 157 Cannon . | . . . Launcher . | . . . Special . | . . . Kinetic 21 | 3 18 . Thermal 186 | 3 26 157 Explosive . | . . . Electromagnetic . | . . . Robot Hit Streak 12 | 2 8 12 Robot Miss Streak 6 | 1 2 6 Penetration Max . | . . . Secondary Targets 6 | . . 6 Max Gunslinging Chain 1 | . . 1 Shots Hit Robots 132 | 2 29 101 Core Hits 56 | 2 15 39 Critical Kills . | . . . Critical Parts Destroyed . | . . . Critical Strikes 10 | . . 10 Burn 10 | . . 10 Melee Attacks . | . . . Impact . | . . . Slashing . | . . . Piercing . | . . . Sneak Attacks . | . . . Combat Hostiles . | . . . Follow-up Attacks . | . . . Damage Inflicted 1819 | 23 340 1456 Guns 1819 | 23 340 1456 Cannons . | . . . Explosions . | . . . Melee . | . . . Ramming . | . . . Kinetic 136 | 11 125 . Thermal 1683 | 12 215 1456 Explosive . | . . . Electromagnetic . | . . . Impact . | . . . Slashing . | . . . Piercing . | . . . Highest Corruption 7 | . 1 7 Average Corruption 4 | . 1 7 Corruption Purged . | . . . Corruption Blocked . | . . . Effects 11 | . 2 9 Message Errors 1 | . . 1 Matter Fused 1 | . . 1 Heat Flow Errors 1 | . . 1 Energy Discharges 3 | . . 3 Parts Fused 1 | . . 1 Data Loss (major) 2 | . 1 1 Alerts 2 | . 1 1 Overload Shots . | . . . Overflow Damage . | . . . Projectiles . | . . . Explosions . | . . . Melee . | . . . Knockbacks . | . . . Impact . | . . . Kinetic . | . . . Secondary . | . . . Self-Inflicted Damage . | . . . Shots . | . . . Rammed . | . . . Targets Rammed . | . . . Kicked . | . . . Crushed . | . . . Highest Temperature 333 | . 156 333 Average Temperature 94 | . 39 106 Received Heat Transfer 699 | . 93 606 Siege Activations . | . . . Martial Activations . | . . . Shielding Activations . | . . . Robots Disrupted . | . . . Combat Hostiles . | . . . Robots Corrupted . | . . . Combat Hostiles . | . . . Parts Fried . | . . . Impact Corruptions . | . . . Robots Melted 2 | . . 2 Combat Hostiles 2 | . . 2 Parts Melted 7 | . 2 5 Heat Transferred 5197 | 25 547 4625 Parts Sabotaged . | . . . Parts Stolen . | . . . Parts Stripped . | . . . Power Chain Reactions . | . . . Alert | -11 -10 -9 ------- Run | Yrd Mat Mat Maximum Alert Level 1 | . . 1 Low Security (%) 73 | 100 100 52 Level 1 26 | . . 47 Level 2 . | . . . Level 3 . | . . . Level 4 . | . . . Level 5 . | . . . High Security . | . . . Max Security . | . . . Peak Influence 251 | 5 122 251 Initial 8 | . . 8 Average 111 | . 46 167 Influence Increases 739 | 5 191 543 Destroy 0b10 Robot/C 460 | . 100 360 Destroy 0b10 Robot/NC 40 | 5 10 25 Destroy Leader 92 | . 24 68 Trap Triggered on 0b10 10 | . 10 . Successful Hack 16 | . 16 . Destroy Structure 1 | . 1 . Partial Spotted 60 | . . 60 Lose Combat Pursuer 60 | . 30 30 Influence Decreases 572 | 5 170 397 Entered New Map 13 | . . 13 Time Decay 449 | 5 170 274 Lost Part 110 | . . 110 Squads Dispatched 1 | . 1 . Investigation 1 | . 1 . Extermination . | . . . Reinforcement . | . . . Assault . | . . . Garrison . | . . . Intercept . | . . . Searches Triggered . | . . . Construction Impeded . | . . . Haulers Reinforced . | . . . Active Scanning Responses . | . . . Cargo Convoy Interrupts . | . . . Stealth | -11 -10 -9 --------- Run | Yrd Mat Mat Distress Signals . | . . . Communications Jammed . | . . . Distress Signals . | . . . Times Spotted 35 | . 9 26 Peak Tracking Total 4 | . 4 4 Tactical Retreats 3 | . 1 2 Traps | -11 -10 -9 ------- Run | Yrd Mat Mat Traps Triggered 2 | . 1 1 Indirectly . | . . . Trap Hack Attempts . | . . . Triggered . | . . . Disarmed . | . . . Reprogrammed 6 | . 6 . Reused 1 | . 1 . Traps Extracted . | . . . Installed . | . . . Triggered 1 | . 1 . Machines | -11 -10 -9 ---------- Run | Yrd Mat Mat Machines Disabled . | . . . Max in Single Turn . | . . . Machines Repaired . | . . . Machines Dismantled . | . . . Machines Sabotaged . | . . . Overloaded Fab Kills . | . . . Hacking | -11 -10 -9 --------- Run | Yrd Mat Mat Machines Accessed 5 | . 4 1 Terminals 3 | . 3 . Fabricators . | . . . Repair Stations 1 | . . 1 Recycling Units 1 | . 1 . Scanalyzers . | . . . Garrison Access . | . . . Total Hacks 13 | . 11 2 Successful 8 | . 7 1 Failed 5 | . 4 1 Catastrophic 1 | . 1 . Database Lockouts . | . . . Manual 1 | . 1 . Terminals 9 | . 9 . Fabricators . | . . . Repair Stations 2 | . . 2 Recycling Units 2 | . 2 . Scanalyzers . | . . . Garrison Access . | . . . Terminal Hacks 6 | . 6 . Prototype ID Bank 1 | . 1 . Locate Traps 1 | . 1 . Reprogram Traps 1 | . 1 . Dispatch Records 1 | . 1 . Registered Components 1 | . 1 . Zone Layout 1 | . 1 . Fabricator Hacks . | . . . Repair Station Hacks 1 | . . 1 Scan Component 1 | . . 1 Recycling Unit Hacks 1 | . 1 . Report Inventory 1 | . 1 . Scanalyzer . | . . . Garrison Access Hacks . | . . . Unauthorized Hacks . | . . . Terminals . | . . . Fabricators . | . . . Repair Stations . | . . . Recycling Units . | . . . Scanalyzers . | . . . Garrison Access . | . . . Data Cores Recovered . | . . . Used . | . . . Hacking Detections 4 | . 3 1 Full Trace Events . | . . . Feedback Events . | . . . Feedback Blocked . | . . . Robot Schematics Acquired . | . . . Robots Built . | . . . Authchips . | . . . Time . | . . . Total Robot Build Rating . | . . . Part Schematics Acquired . | . . . Parts Built . | . . . Authchips . | . . . Time . | . . . Total Part Build Rating . | . . . Part Studies Acquired . | . . . Parts Repaired . | . . . Time . | . . . Parts Recycled . | . . . Recycled Matter . | . . . Retrieved Matter . | . . . Retrieved Components . | . . . Parts Scanalyzed . | . . . Part Schematics Acquired . | . . . Parts Damaged . | . . . Bothacking | -11 -10 -9 ------------ Run | Yrd Mat Mat Used RIF Installer . | . . . Robots Hacked . | . . . Non-combat . | . . . Combat . | . . . Robot Hacks Applied . | . . . Relay Couplers Released . | . . . Fabnet Peak Effective % . | . . . Robots Rewired . | . . . Allies Hacked . | . . . Hacks Repelled . | . . . Allies | -11 -10 -9 -------- Run | Yrd Mat Mat Total Allies . | . . . Largest Group . | . . . Highest-Rated Group . | . . . Highest-Rated Ally . | . . . Total Orders . | . . . Ally Attacks . | . . . Total Damage . | . . . Kills . | . . . Allies Corrupted . | . . . Allies Melted . | . . . Intel | -11 -10 -9 ------- Run | Yrd Mat Mat Active Infowar (turns) 678 | . 334 344 T.N.C. 678 | . 334 344 Robot Analysis Total . | . . . Derelict Logs Recovered . | . . . Drone Launches . | . . . Drone Recoveries . | . . . Exploration | -11 -10 -9 ------------- Run | Yrd Mat Mat Turns Passed 1108 | 74 409 625 Spaces Moved 707 | 45 257 405 Core 93 | 12 . 81 Treads 85 | . . 85 Legs 349 | 33 257 59 Wheels . | . . . Hover . | . . . Flight 180 | . . 180 Fastest Speed 34 | 50 120 34 Average Speed 97 | 101 120 82 Slowest Speed 200 | 120 120 200 Overloaded Moves . | . . . Propulsion Burnouts . | . . . Robots Hopped 2 | . . 2 Potential Cave-ins . | . . . Cave-ins Triggered . | . . . Exploration Rate (%) 23 | 3 41 27 Regions Visited 2 Branch Regions . Pre-discovered Areas . | . . . Known Exits Taken . | . . . Unknown Exits Taken 2 | 1 1 . Scrap Searched . | . . . Spaces Dug . | . . . Terrain Destroyed . | . . . Melee . | . . . Projectile . | . . . AOE . | . . . Terrain Rammed . | . . . Walls Destroyed . | . . . Machines Disabled . | . . . Actions | -11 -10 -9 --------- Run | Yrd Mat Mat Total 936 | 66 311 559 Wait 45 | . 24 21 Move 701 | 44 256 401 Hop 2 | . . 2 Pick Up 21 | 7 5 9 Fast Attach 16 | 7 . 9 Attach 6 | . . 6 Detach . | . . . Swap 10 | . 4 6 Drop 19 | 5 . 14 Fire 116 | 3 22 91 Melee . | . . . Ram . | . . . Kick . | . . . Crush . | . . . Escape Stasis . | . . . Rewire . | . . . Trap . | . . . Miscellaneous . | . . . Route ------- -11/Scrapyard -10/Materials -9/Materials History --------- Turn | Location | Event 10 | -11/Scrapyard | Discovered new exit (range 16) 75 | -11/Scrapyard | Entered Materials 302 | -10/Materials | Discovered new exit (range 14) 304 | -10/Materials | Build established: Mutant 484 | -10/Materials | Entered another Materials area 484 | -9/Materials | Evolved 2 slots: Propulsion x1, Weapon x1 765 | -9/Materials | Core integrity fell below 50% 819 | -9/Materials | Core integrity fell below 20% 820 | -9/Materials | Destroyed 7 combat bots 823 | -9/Materials | Lost 8 parts (1p3n4w) 860 | -9/Materials | Lost 3 parts (1n2u) 1109 | -9/Materials | Destroyed by Y-45 Defender with Heavy Assault Rifle Last Messages --------------- 00962_ Acquired 10 matter. 00970_ R-06 Scavenger collects Heat Sink. 00972_ K-01 Serf collects debris. 00987_ System corrupted: Energy discharge (-27). 01015_ System corrupted: Substantial component data lost. 01027_ Acquired Field Laser. 01037_ Acquired 40 matter. 01040_ R84XX5GXY8C2 01078_ K-01 Serf cleans the Matter Pump. 01086_ U-05 Engineer lays Concrete. 01103_ System corrupted: IFF burst signal emitted. Map ----- +----------------------------------------------------+ | ?????? ????????????????????????????????????????? | | ?????? ????????????????????????????????????????? | | ?????# #???????????????????????????????????????? | | ?????# #???????????????????????????????????????? | | ?????# #???????????????????????????????????????? | | ?????# #???????????????????????????????????????? | | ?????# #???????????????????????????????????????? | | ?????# #???????????????????????????????????????? | | ???### #???????????????????????????????????????? | | ??? #???????????????????????????????????????? | | ???? #???????????????????????????????????????? | | ????? #???????????????????????????????????????? | | ?????# +???????????????????????????????????????? | | ?????# #?????????????###???????????????????????? | | ?????# #?????????????# ???????????????????????? | | ?????# #?????????????# #???????????????????????? | | ?????# #?????????????# #???????????????????????? | | ?????# #?????????????# #???????????????????????? | | ?????# #?????????????# #???????????????????????? | | ?????# #?????????????# #####???????????????????? | | ?????# ############### #???????????????????? | | ?????# ^ % #???????????????????? | | ?##### %^ [ #???????????????????? | | ?# % % #???????????????????? | | ?# ^^ ######## #???????????????????? | | ?#// ^ %""" #??????##@ ##???????????????????? | | ?#// """ #??? ## #????????????????????? | | ?#!! % """ #???" ## #????????????????????? | | ?#!! +??"" ## #????????????????????? | | ?##### %#??"" ## #????????????????????? | | ??########### #? ## a #????????????????????? | | ??# #% #? !!## #????????????????????? | | ??# # # !!#Y Y ????????????????????? | | ??# # # # ka ????????????????????? | | ??# # + + t ???????????????????? | | ??##+##+##### # # ???????????????????? | | ???# % ###### # #???????????????????? | | ???# #####/#####????######???????????????????? | | ???# # #?????????????????????????????? | | ???# # #?????????????????????????????? | | #### # #?????????????????????????????? | | ** # # #?????????????????????????????? | | ! # %= # """ """ #?????????????????????????????? | | %# # """ """ #?????????????????????????????? | | " + # """ """ #?????????????????????????????? | | ### # #?????????????????????????????? | | #?#########+########??????????????????????????? | | ####?????????#!#?# [**#??????????????????????????? | | #?????????#!#?# [**#??????????????????????????? | | #?????????#%#?# [* #??????????????????????????? | +----------------------------------------------------+ Best States ------------- Heat Dissipation 42 Coolant Potential 50 Energy Generation 10 Energy Capacity 250 Matter Stores 300 Matter Capacity 300 Sight Range 16 Terrain Scan Density 10 Evasion (%) 63 Recoil Reduction 1 Authchip Count 1 Item Schematics ----------------- None Robot Schematics ------------------ None Fabricated ------------ Nothing Repaired ---------- Nothing Studied --------- None Alien Tech Used ----------------- None Achievements -------------- None Challenges ------------ None Game ------ Seed PointyPlasmaDeck Manual? 0 Play Time 00:18:07 Cumulative 20.9 hours Start 2026.02.15 @ 03:53:22 End 2026.02.15 @ 04:10:51 Sessions 1 Manual Loads 0 Difficulty Rogue Special Mode None Game No. 25 Rogue 25 Adventurer 0 Explorer 0 Win Type - Total 0 Types 0/0/0/0/0/0/0/0/0/0 Lore% 13 Gallery% 19 Achievement% 16 Wizard Run 0 Options --------- Layout 1 ASCII 0 Keyboard 0 Movement Mouse Keybinds 0 Fullscreen 1 Font 32/SmallcapsGlow Map View 77x35 Zoom Use 0% Tactical HUD 1 Map Filters NONE Filters NONE Steam 1 RUN: 9d31c405-a7e6-444a-b7e3-8ec7f06fa735